fUSD/lending_fUSD_20260622
["ID","MTS","AMOUNT","RATE_DAILY","PERIOD"]
[425978061,1782061930000,-159.2094345,0.0003014,4]
[425978092,1782061930000,-2500.0,0.0003025,2]
[425978063,1782061930000,-159.2094345,0.0003014,4]
[425978066,1782061930000,-159.2094345,0.0003014,4]
[425978067,1782061930000,-159.2094345,0.0003014,4]
[425978070,1782061930000,-159.2094345,0.0003014,4]
[425978072,1782061930000,-159.2094345,0.0003014,4]
[425978085,1782061930000,-666.56,0.000302,2]
[425978074,1782061930000,-159.2,0.0003014,4]
[425978089,1782061930000,-3573.12,0.0003025,2]
[425978084,1782061930000,-666.56,0.000302,2]
[425978076,1782061930000,-250.0,0.00030157,7]
[425978075,1782061930000,-250.0,0.00030157,7]
[425978081,1782061930000,-1850.65,0.000302,7]
[425978080,1782061930000,-2719.6,0.000302,2]
[425978073,1782061930000,-159.2094345,0.0003014,4]
[425978078,1782061930000,-6464.69276001,0.00030167,7]
[425978079,1782061930000,-160.0,0.00030168,3]
[425978091,1782061930000,-25000.0,0.0003025,2]
[425978093,1782061930000,-25000.0,0.0003025,2]
[425978094,1782061930000,-2500.0,0.0003025,2]
[425978096,1782061930000,-2500.0,0.0003025,2]
[425978095,1782061930000,-25000.0,0.0003025,2]
[425978090,1782061930000,-22500.0,0.0003025,2]
[425978087,1782061930000,-1025.33,0.000302,30]
[425978086,1782061930000,-666.57,0.000302,2]
[425978083,1782061930000,-15855.76570496,0.000302,2]
[425978082,1782061930000,-86120.48161171,0.000302,2]
[425978077,1782061930000,-249.0,0.00030158,2]
[425978088,1782061930000,-208.8,0.00030239,2]
[425978167,1782061931000,-500.0,0.0003041,2]
[425978159,1782061931000,-651.64,0.0003041,2]
[425978161,1782061931000,-500.0,0.0003041,2]
[425978164,1782061931000,-500.0,0.0003041,2]
[425978160,1782061931000,-500.0,0.0003041,2]
[425978165,1782061931000,-1369.32,0.0003041,2]
[425978166,1782061931000,-500.0,0.0003041,2]
[425978157,1782061931000,-643.15,0.0003041,2]
[425978155,1782061931000,-842.29,0.0003041,2]
[425978152,1782061931000,-1512.27,0.0003041,2]
[425978158,1782061931000,-975.39,0.0003041,2]
[425978163,1782061931000,-923.93,0.0003041,2]
[425978181,1782061931000,-526.65,0.0003041,2]
[425978168,1782061931000,-553.48,0.0003041,2]
[425978170,1782061931000,-500.0,0.0003041,2]
[425978169,1782061931000,-330.92275878,0.0003041,2]
[425978172,1782061931000,-1267.5,0.0003041,2]
[425978178,1782061931000,-500.0,0.0003041,2]
[425978177,1782061931000,-555.93,0.0003041,2]
[425978173,1782061931000,-500.0,0.0003041,2]
[425978179,1782061931000,-500.0,0.0003041,2]
[425978175,1782061931000,-597.73,0.0003041,2]
[425978176,1782061931000,-293.48846219,0.0003041,2]
[425978171,1782061931000,-500.0,0.0003041,2]
[425978174,1782061931000,-500.0,0.0003041,2]
[425978154,1782061931000,-500.0,0.0003041,2]
[425978162,1782061931000,-500.0,0.0003041,2]
[425978156,1782061931000,-544.8,0.0003041,2]
[425978138,1782061931000,-536.66,0.0003041,2]
[425978148,1782061931000,-1266.12,0.0003041,2]
[425978182,1782061931000,-540.54,0.0003041,2]
[425978132,1782061931000,-579.02,0.0003041,2]
[425978133,1782061931000,-2687.78,0.0003041,2]
[425978131,1782061931000,-560.05309614,0.0003041,2]
[425978126,1782061931000,-500.0,0.0003041,2]
[425978130,1782061931000,-534.74323602,0.0003041,2]
[425978127,1782061931000,-500.0,0.0003041,2]
[425978128,1782061931000,-452.71318536,0.0003041,2]
[425978125,1782061931000,-576.16,0.0003041,2]
[425978129,1782061931000,-500.0,0.0003041,2]
[425978134,1782061931000,-500.0,0.0003041,2]
[425978137,1782061931000,-500.0,0.0003041,2]
[425978153,1782061931000,-500.0,0.0003041,2]
[425978140,1782061931000,-500.0,0.0003041,2]
[425978143,1782061931000,-500.0,0.0003041,2]
[425978136,1782061931000,-1000.0,0.0003041,7]
[425978145,1782061931000,-500.0,0.0003041,2]
[425978135,1782061931000,-500.0,0.0003041,2]
[425978141,1782061931000,-631.9,0.0003041,2]
[425978142,1782061931000,-508.36,0.0003041,2]
[425978144,1782061931000,-500.0,0.0003041,2]
[425978147,1782061931000,-500.0,0.0003041,2]
[425978146,1782061931000,-1880.63,0.0003041,2]
[425978149,1782061931000,-645.4,0.0003041,2]
[425978150,1782061931000,-1160.03,0.0003041,2]
[425978151,1782061931000,-1217.07,0.0003041,2]
[425978139,1782061931000,-549.03855289,0.0003041,2]
[425978185,1782061931000,-500.0,0.0003041,2]
[425978183,1782061931000,-403.87567697,0.0003041,2]
[425978180,1782061931000,-527.94,0.0003041,2]
[425978217,1782061931000,-369.05397378,0.0003041,2]
[425978216,1782061931000,-500.0,0.0003041,2]
[425978219,1782061931000,-500.0,0.0003041,2]
[425978218,1782061931000,-500.0,0.0003041,2]
[425978220,1782061931000,-500.0,0.0003041,2]
[425978221,1782061931000,-500.0,0.0003041,2]
[425978223,1782061931000,-847.94,0.0003041,2]
[425978222,1782061931000,-500.0,0.0003041,2]
[425978226,1782061931000,-167.11747935,0.0003041,2]
[425978224,1782061931000,-500.0,0.0003041,2]
[425978225,1782061931000,-500.0,0.0003041,2]
[425978227,1782061931000,-741.63,0.0003041,2]
[425978213,1782061931000,-500.0,0.0003041,2]
[425978229,1782061931000,-535.03,0.0003041,2]
[425978230,1782061931000,-500.0,0.0003041,2]
[425978238,1782061931000,-500.0,0.0003041,2]
[425978235,1782061931000,-663.71,0.0003041,2]
[425978228,1782061931000,-831.45,0.0003041,2]
[425978232,1782061931000,-534.55,0.0003041,2]
[425978234,1782061931000,-500.0,0.0003041,2]
[425978236,1782061931000,-670.78,0.0003041,2]
[425978233,1782061931000,-500.0,0.0003041,2]
[425978184,1782061931000,-610.79,0.0003041,2]
[425978240,1782061931000,-500.0,0.0003041,2]
[425978239,1782061931000,-1423.29,0.0003041,2]
[425978241,1782061931000,-500.0,0.0003041,2]
[425978231,1782061931000,-500.0,0.0003041,2]
[425978212,1782061931000,-500.0,0.0003041,2]
[425978237,1782061931000,-567.5,0.0003041,2]
[425978214,1782061931000,-500.0,0.0003041,2]
[425978210,1782061931000,-3422.69,0.0003041,2]
[425978186,1782061931000,-902.56,0.0003041,2]
[425978187,1782061931000,-500.0,0.0003041,2]
[425978189,1782061931000,-500.0,0.0003041,2]
[425978190,1782061931000,-529.62,0.0003041,2]
[425978192,1782061931000,-500.0,0.0003041,2]
[425978202,1782061931000,-500.0,0.0003041,2]
[425978203,1782061931000,-500.0,0.0003041,2]
[425978193,1782061931000,-591.28,0.0003041,2]
[425978191,1782061931000,-500.0,0.0003041,2]
[425978194,1782061931000,-560.08,0.0003041,2]
[425978195,1782061931000,-500.0,0.0003041,2]
[425978196,1782061931000,-500.0,0.0003041,2]
[425978188,1782061931000,-500.0,0.0003041,2]
[425978200,1782061931000,-500.0,0.0003041,2]
[425978197,1782061931000,-597.07,0.0003041,2]
[425978209,1782061931000,-500.0,0.0003041,2]
[425978206,1782061931000,-819.78,0.0003041,2]
[425978207,1782061931000,-506.54,0.0003041,2]
[425978215,1782061931000,-549.42,0.0003041,2]
[425978211,1782061931000,-766.03,0.0003041,2]
[425978204,1782061931000,-972.04,0.0003041,2]
[425978205,1782061931000,-562.86,0.0003041,2]
[425978199,1782061931000,-500.0,0.0003041,2]
[425978198,1782061931000,-150.0,0.0003041,120]
[425978201,1782061931000,-598.59,0.0003041,2]
[425978208,1782061931000,-534.07,0.0003041,2]
[425978268,1782061932000,-500.0,0.0003041,2]
[425978280,1782061932000,-500.0,0.0003041,2]
[425978273,1782061932000,-500.0,0.0003041,2]
[425978266,1782061932000,-500.0,0.0003041,2]
[425978272,1782061932000,-594.9,0.0003041,2]
[425978270,1782061932000,-500.0,0.0003041,2]
[425978275,1782061932000,-803.29,0.0003041,2]
[425978271,1782061932000,-800.23,0.0003041,2]
[425978274,1782061932000,-500.0,0.0003041,2]
[425978277,1782061932000,-1092.63,0.0003041,2]
[425978282,1782061932000,-500.0,0.0003041,2]
[425978281,1782061932000,-7491.39,0.0003041,2]
[425978289,1782061932000,-500.0,0.0003041,2]
[425978288,1782061932000,-547.64825645,0.0003041,2]
[425978285,1782061932000,-3987.32,0.0003041,2]
[425978287,1782061932000,-500.0,0.0003041,2]
[425978286,1782061932000,-654.24,0.0003041,2]
[425978283,1782061932000,-575.21969403,0.0003041,2]
[425978290,1782061932000,-602.92,0.0003041,2]
[425978291,1782061932000,-500.0,0.0003041,2]
[425978284,1782061932000,-500.0,0.0003041,2]
[425978269,1782061932000,-500.0,0.0003041,2]
[425978279,1782061932000,-500.0,0.0003041,2]
[425978276,1782061932000,-500.0,0.0003041,2]
[425978254,1782061932000,-640.68,0.0003041,2]
[425978267,1782061932000,-500.0,0.0003041,2]
[425978303,1782061932000,-1016.84,0.0003041,2]
[425978250,1782061932000,-500.0,0.0003041,2]
[425978251,1782061932000,-792.91,0.0003041,2]
[425978243,1782061932000,-500.0,0.0003041,2]
[425978242,1782061932000,-500.0,0.0003041,2]
[425978246,1782061932000,-952.51,0.0003041,2]
[425978244,1782061932000,-1244.82,0.0003041,2]
[425978245,1782061932000,-698.8,0.0003041,2]
[425978247,1782061932000,-500.0,0.0003041,2]
[425978249,1782061932000,-588.39,0.0003041,2]
[425978248,1782061932000,-620.22,0.0003041,2]
[425978278,1782061932000,-540.14,0.0003041,2]
[425978256,1782061932000,-678.71,0.0003041,2]
[425978255,1782061932000,-2678.53,0.0003041,2]
[425978264,1782061932000,-500.0,0.0003041,2]
[425978263,1782061932000,-1318.07,0.0003041,2]
[425978257,1782061932000,-508.83,0.0003041,2]
[425978259,1782061932000,-1511.74,0.0003041,2]
[425978260,1782061932000,-500.0,0.0003041,2]
[425978253,1782061932000,-500.0,0.0003041,2]
[425978262,1782061932000,-519.3,0.0003041,2]
[425978265,1782061932000,-690.91,0.0003041,2]
[425978261,1782061932000,-893.03,0.0003041,2]
[425978258,1782061932000,-500.0,0.0003041,2]
[425978252,1782061932000,-504.67608429,0.0003041,2]
[425978293,1782061932000,-5224.19,0.0003041,2]
[425978298,1782061932000,-500.0,0.0003041,2]
[425978292,1782061932000,-5864.59,0.0003041,2]
[425978334,1782061932000,-605.17,0.0003041,2]
[425978325,1782061932000,-741.05,0.0003041,2]
[425978326,1782061932000,-732.43,0.0003041,2]
[425978333,1782061932000,-6410.69,0.0003041,2]
[425978324,1782061932000,-5923.33,0.0003041,2]
[425978335,1782061932000,-12052.2,0.0003041,2]
[425978327,1782061932000,-541.15,0.0003041,2]
[425978328,1782061932000,-1048.26,0.0003041,2]
[425978329,1782061932000,-500.0,0.0003041,2]
[425978332,1782061932000,-4756.56,0.0003041,2]
[425978330,1782061932000,-500.0,0.0003041,2]
[425978336,1782061932000,-500.0,0.0003041,2]
[425978338,1782061932000,-2146.6,0.0003041,2]
[425978339,1782061932000,-8253.7,0.0003041,2]
[425978340,1782061932000,-398.30342006,0.0003041,2]
[425978337,1782061932000,-4173.31,0.0003041,2]
[425978344,1782061932000,-500.0,0.0003041,2]
[425978341,1782061932000,-822.03,0.0003041,2]
[425978345,1782061932000,-547.74,0.0003041,2]
[425978342,1782061932000,-1547.68,0.0003041,2]
[425978343,1782061932000,-500.0,0.0003041,2]
[425978346,1782061932000,-9055.22,0.0003041,2]
[425978304,1782061932000,-500.0,0.0003041,2]
[425978323,1782061932000,-4889.99,0.0003041,2]
[425978319,1782061932000,-2712.86,0.0003041,2]
[425978331,1782061932000,-500.0,0.0003041,2]
[425978321,1782061932000,-192.74194241,0.0003041,2]
[425978297,1782061932000,-1118.18,0.0003041,2]
[425978320,1782061932000,-873.86,0.0003041,2]
[425978300,1782061932000,-500.0,0.0003041,2]
[425978294,1782061932000,-500.0,0.0003041,2]
[425978295,1782061932000,-500.0,0.0003041,2]
[425978296,1782061932000,-500.0,0.0003041,2]
[425978299,1782061932000,-1056.03,0.0003041,2]
[425978302,1782061932000,-1000.0,0.0003041,2]
[425978305,1782061932000,-500.0,0.0003041,2]
[425978310,1782061932000,-180.735302,0.0003041,2]
[425978307,1782061932000,-500.0,0.0003041,2]
[425978311,1782061932000,-500.0,0.0003041,2]
[425978301,1782061932000,-500.0,0.0003041,2]
[425978317,1782061932000,-3926.18,0.0003041,2]
[425978308,1782061932000,-500.0,0.0003041,2]
[425978306,1782061932000,-500.0,0.0003041,2]
[425978309,1782061932000,-500.0,0.0003041,2]
[425978315,1782061932000,-6753.8,0.0003041,2]
[425978314,1782061932000,-500.0,0.0003041,2]
[425978316,1782061932000,-500.0,0.0003041,2]
[425978313,1782061932000,-572.65,0.0003041,2]
[425978318,1782061932000,-500.0,0.0003041,2]
[425978312,1782061932000,-1130.66,0.0003041,2]
[425978322,1782061932000,-500.0,0.0003041,2]
[425978382,1782061933000,-500.0,0.0003041,2]
[425978383,1782061933000,-514.73,0.0003041,2]
[425978380,1782061933000,-2478.59,0.0003041,2]
[425978388,1782061933000,-10460.79,0.0003041,2]
[425978374,1782061933000,-6489.37,0.0003041,2]
[425978389,1782061933000,-742.97,0.0003041,2]
[425978379,1782061933000,-763.6,0.0003041,2]
[425978367,1782061933000,-544.71,0.0003041,2]
[425978387,1782061933000,-981.05,0.0003041,2]
[425978378,1782061933000,-8108.8,0.0003041,2]
[425978385,1782061933000,-10410.98,0.0003041,2]
[425978399,1782061933000,-538.42,0.0003041,2]
[425978381,1782061933000,-500.0,0.0003041,2]
[425978384,1782061933000,-3418.67,0.0003041,2]
[425978392,1782061933000,-15060.49,0.0003041,2]
[425978390,1782061933000,-631.38,0.0003041,2]
[425978396,1782061933000,-4131.31,0.0003041,2]
[425978391,1782061933000,-650.16,0.0003041,2]
[425978398,1782061933000,-6683.71,0.0003041,2]
[425978394,1782061933000,-6462.79,0.0003041,2]
[425978397,1782061933000,-3874.09,0.0003041,2]
[425978400,1782061933000,-629.28,0.0003041,2]
[425978373,1782061933000,-3434.42,0.0003041,2]
[425978386,1782061933000,-8432.29,0.0003041,2]
[425978377,1782061933000,-6468.05,0.0003041,2]
[425978355,1782061933000,-9631.81,0.0003041,2]
[425978376,1782061933000,-500.0,0.0003041,2]
[425978347,1782061933000,-500.0,0.0003041,2]
[425978395,1782061933000,-500.0,0.0003041,2]
[425978348,1782061933000,-4867.06,0.0003041,2]
[425978354,1782061933000,-500.0,0.0003041,2]
[425978353,1782061933000,-913.85,0.0003041,2]
[425978350,1782061933000,-4107.48,0.0003041,2]
[425978349,1782061933000,-408.64282722,0.0003041,2]
[425978352,1782061933000,-500.0,0.0003041,2]
[425978351,1782061933000,-839.88,0.0003041,2]
[425978356,1782061933000,-500.0,0.0003041,2]
[425978358,1782061933000,-1087.92,0.0003041,2]
[425978359,1782061933000,-1094.84,0.0003041,2]
[425978363,1782061933000,-9092.8,0.0003041,2]
[425978365,1782061933000,-946.16,0.0003041,2]
[425978362,1782061933000,-3218.44,0.0003041,2]
[425978360,1782061933000,-500.0,0.0003041,2]
[425978361,1782061933000,-8104.14,0.0003041,2]
[425978357,1782061933000,-4501.1,0.0003041,2]
[425978364,1782061933000,-3370.08,0.0003041,2]
[425978368,1782061933000,-500.0,0.0003041,2]
[425978366,1782061933000,-8949.23,0.0003041,2]
[425978370,1782061933000,-826.36,0.0003041,2]
[425978371,1782061933000,-4428.27,0.0003041,2]
[425978369,1782061933000,-6582.69,0.0003041,2]
[425978375,1782061933000,-500.0,0.0003041,2]
[425978372,1782061933000,-636.34913728,0.0003041,2]
[425978401,1782061933000,-500.0,0.0003041,2]
[425978393,1782061933000,-500.0,0.0003041,2]
[425978403,1782061933000,-500.0,0.0003041,2]
[425978433,1782061933000,-6111.21,0.0003041,2]
[425978434,1782061933000,-500.0,0.0003041,2]
[425978439,1782061933000,-641.19403015,0.0003041,2]
[425978437,1782061933000,-3268.54,0.0003041,2]
[425978435,1782061933000,-500.0,0.0003041,2]
[425978438,1782061933000,-500.0,0.0003041,2]
[425978436,1782061933000,-500.0,0.0003041,2]
[425978440,1782061933000,-543.15,0.0003041,2]
[425978441,1782061933000,-6629.64,0.0003041,2]
[425978443,1782061933000,-781.73,0.0003041,2]
[425978444,1782061933000,-500.0,0.0003041,2]
[425978431,1782061933000,-546.99,0.0003041,2]
[425978456,1782061933000,-5000.0,0.00030455,2]
[425978449,1782061933000,-501.82455083,0.00030411,2]
[425978445,1782061933000,-4853.13,0.0003041,2]
[425978448,1782061933000,-150.29,0.00030411,120]
[425978447,1782061933000,-500.0,0.0003041,2]
[425978453,1782061933000,-1025.33,0.0003044,30]
[425978451,1782061933000,-200.0,0.00030437,2]
[425978450,1782061933000,-1334.73,0.00030411,2]
[425978454,1782061933000,-509.0,0.00030441,5]
[425978452,1782061933000,-200.0,0.00030437,2]
[425978455,1782061933000,-5000.0,0.00030455,2]
[425978402,1782061933000,-500.0,0.0003041,2]
[425978446,1782061933000,-500.0,0.0003041,2]
[425978428,1782061933000,-529.37,0.0003041,2]
[425978442,1782061933000,-1025.57,0.0003041,2]
[425978429,1782061933000,-8318.01,0.0003041,2]
[425978404,1782061933000,-500.0,0.0003041,2]
[425978430,1782061933000,-4605.85,0.0003041,2]
[425978405,1782061933000,-785.35,0.0003041,2]
[425978406,1782061933000,-853.42,0.0003041,2]
[425978407,1782061933000,-500.0,0.0003041,2]
[425978410,1782061933000,-2013.27,0.0003041,2]
[425978411,1782061933000,-1483.1,0.0003041,2]
[425978409,1782061933000,-670.57,0.0003041,2]
[425978414,1782061933000,-501.49,0.0003041,2]
[425978412,1782061933000,-709.73,0.0003041,2]
[425978415,1782061933000,-438.25281227,0.0003041,2]
[425978413,1782061933000,-4451.14,0.0003041,2]
[425978418,1782061933000,-1823.11,0.0003041,2]
[425978408,1782061933000,-500.0,0.0003041,2]
[425978417,1782061933000,-2000.0,0.0003041,2]
[425978432,1782061933000,-2744.45,0.0003041,2]
[425978425,1782061933000,-1825.32,0.0003041,2]
[425978426,1782061933000,-500.0,0.0003041,2]
[425978427,1782061933000,-3531.97,0.0003041,2]
[425978423,1782061933000,-500.0,0.0003041,2]
[425978424,1782061933000,-500.0,0.0003041,2]
[425978421,1782061933000,-8230.87,0.0003041,2]
[425978420,1782061933000,-4815.29,0.0003041,2]
[425978422,1782061933000,-500.0,0.0003041,2]
[425978416,1782061933000,-500.0,0.0003041,2]
[425978419,1782061933000,-616.3,0.0003041,2]
[425978491,1782061934000,-1025.33,0.000306,30]
[425978494,1782061934000,-5800.0,0.00030616,2]
[425978493,1782061934000,-1334.73,0.00030616,2]
[425978502,1782061934000,-5800.0,0.00030667,2]
[425978501,1782061934000,-5800.0,0.00030659,2]
[425978487,1782061934000,-5800.0,0.00030582,2]
[425978500,1782061934000,-5800.0,0.0003065,2]
[425978515,1782061934000,-558.56282758,0.00030684,2]
[425978486,1782061934000,-5800.0,0.00030574,2]
[425978488,1782061934000,-5800.0,0.00030591,2]
[425978496,1782061934000,-22500.0,0.00030625,2]
[425978492,1782061934000,-5800.0,0.00030608,2]
[425978495,1782061934000,-5800.0,0.00030625,2]
[425978509,1782061934000,-500.0,0.00030684,2]
[425978497,1782061934000,-5800.0,0.00030633,2]
[425978498,1782061934000,-2110.0,0.00030637,2]
[425978503,1782061934000,-895.41,0.0003067,2]
[425978505,1782061934000,-10000.0,0.0003068,2]
[425978507,1782061934000,-5800.0,0.00030684,2]
[425978508,1782061934000,-5800.0,0.00030684,2]
[425978513,1782061934000,-500.0,0.00030684,2]
[425978514,1782061934000,-500.0,0.00030684,2]
[425978511,1782061934000,-500.0,0.00030684,2]
[425978512,1782061934000,-576.16,0.00030684,2]
[425978506,1782061934000,-5800.0,0.00030684,2]
[425978484,1782061934000,-200.0,0.00030569,2]
[425978499,1782061934000,-5800.0,0.00030642,2]
[425978489,1782061934000,-1144.10890095,0.00030591,120]
[425978460,1782061934000,-224.47,0.000305,2]
[425978490,1782061934000,-5800.0,0.00030599,2]
[425978457,1782061934000,-5000.0,0.00030455,2]
[425978461,1782061934000,-185.5931221,0.000305,2]
[425978459,1782061934000,-544.4138588,0.00030476,15]
[425978464,1782061934000,-25000.0,0.000305,2]
[425978462,1782061934000,-2328.59,0.000305,7]
[425978463,1782061934000,-22500.0,0.000305,2]
[425978458,1782061934000,-150.0,0.00030459,120]
[425978466,1782061934000,-25000.0,0.000305,2]
[425978467,1782061934000,-2500.0,0.000305,2]
[425978465,1782061934000,-2500.0,0.000305,2]
[425978469,1782061934000,-24999.98,0.000305,2]
[425978468,1782061934000,-25000.0,0.000305,2]
[425978483,1782061934000,-200.0,0.00030569,2]
[425978471,1782061934000,-2500.0,0.000305,2]
[425978475,1782061934000,-5800.0,0.0003054,2]
[425978473,1782061934000,-1025.33,0.0003052,30]
[425978477,1782061934000,-500.0,0.0003054,2]
[425978472,1782061934000,-150.0,0.00030518,120]
[425978476,1782061934000,-500.0,0.0003054,2]
[425978478,1782061934000,-150.0,0.00030547,120]
[425978474,1782061934000,-5800.0,0.00030531,2]
[425978479,1782061934000,-5800.0,0.00030548,2]
[425978480,1782061934000,-5800.0,0.00030557,2]
[425978482,1782061934000,-5800.0,0.00030565,2]
[425978481,1782061934000,-2331.0,0.00030561,3]
[425978485,1782061934000,-150.0,0.00030573,120]
[425978470,1782061934000,-12500.0,0.000305,2]
[425978510,1782061934000,-500.0,0.00030684,2]
[425978550,1782061934000,-500.0,0.00030684,2]
[425978517,1782061934000,-2687.78,0.00030684,2]
[425978543,1782061934000,-651.64,0.00030684,2]
[425978547,1782061934000,-500.0,0.00030684,2]
[425978551,1782061934000,-553.48,0.00030684,2]
[425978553,1782061934000,-500.0,0.00030684,2]
[425978554,1782061934000,-1267.5,0.00030684,2]
[425978555,1782061934000,-408.5918039,0.00030684,2]
[425978556,1782061934000,-500.0,0.00030684,2]
[425978557,1782061934000,-597.73,0.00030684,2]
[425978560,1782061934000,-500.0,0.00030684,2]
[425978563,1782061934000,-540.54,0.00030684,2]
[425978552,1782061934000,-500.0,0.00030684,2]
[425978562,1782061934000,-526.65,0.00030684,2]
[425978546,1782061934000,-923.93,0.00030684,2]
[425978558,1782061934000,-555.93,0.00030684,2]
[425978559,1782061934000,-500.0,0.00030684,2]
[425978565,1782061934000,-500.0,0.00030684,2]
[425978571,1782061934000,-500.0,0.00030684,2]
[425978564,1782061934000,-610.79,0.00030684,2]
[425978567,1782061934000,-500.0,0.00030684,2]
[425978566,1782061934000,-902.56,0.00030684,2]
[425978570,1782061934000,-500.0,0.00030684,2]
[425978568,1782061934000,-162.02002109,0.00030684,2]
[425978572,1782061934000,-591.28,0.00030684,2]
[425978569,1782061934000,-529.62,0.00030684,2]
[425978574,1782061934000,-500.0,0.00030684,2]
[425978573,1782061934000,-560.08,0.00030684,2]
[425978561,1782061934000,-527.94,0.00030684,2]
[425978545,1782061934000,-500.0,0.00030684,2]
[425978504,1782061934000,-5800.0,0.00030676,2]
[425978542,1782061934000,-500.0,0.00030684,2]
[425978544,1782061934000,-500.0,0.00030684,2]
[425978527,1782061934000,-500.0,0.00030684,2]
[425978516,1782061934000,-579.02,0.00030684,2]
[425978526,1782061934000,-500.0,0.00030684,2]
[425978519,1782061934000,-500.0,0.00030684,2]
[425978520,1782061934000,-1000.0,0.00030684,7]
[425978524,1782061934000,-631.9,0.00030684,2]
[425978518,1782061934000,-500.0,0.00030684,2]
[425978523,1782061934000,-500.0,0.00030684,2]
[425978522,1782061934000,-536.66,0.00030684,2]
[425978525,1782061934000,-508.36,0.00030684,2]
[425978528,1782061934000,-500.0,0.00030684,2]
[425978530,1782061934000,-500.0,0.00030684,2]
[425978521,1782061934000,-500.0,0.00030684,2]
[425978535,1782061934000,-1512.27,0.00030684,2]
[425978534,1782061934000,-1217.07,0.00030684,2]
[425978549,1782061934000,-500.0,0.00030684,2]
[425978539,1782061934000,-544.8,0.00030684,2]
[425978548,1782061934000,-1369.32,0.00030684,2]
[425978540,1782061934000,-643.15,0.00030684,2]
[425978538,1782061934000,-842.29,0.00030684,2]
[425978541,1782061934000,-975.39,0.00030684,2]
[425978529,1782061934000,-1880.63,0.00030684,2]
[425978533,1782061934000,-1160.03,0.00030684,2]
[425978532,1782061934000,-645.4,0.00030684,2]
[425978536,1782061934000,-500.0,0.00030684,2]
[425978531,1782061934000,-1266.12,0.00030684,2]
[425978537,1782061934000,-500.0,0.00030684,2]
[425978591,1782061935000,-766.03,0.00030684,2]
[425978599,1782061935000,-500.0,0.00030684,2]
[425978588,1782061935000,-534.07,0.00030684,2]
[425978590,1782061935000,-3422.69,0.00030684,2]
[425978596,1782061935000,-500.0,0.00030684,2]
[425978598,1782061935000,-587.22507711,0.00030684,2]
[425978595,1782061935000,-549.42,0.00030684,2]
[425978597,1782061935000,-500.0,0.00030684,2]
[425978594,1782061935000,-500.0,0.00030684,2]
[425978600,1782061935000,-500.0,0.00030684,2]
[425978604,1782061935000,-500.0,0.00030684,2]
[425978601,1782061935000,-500.0,0.00030684,2]
[425978593,1782061935000,-500.0,0.00030684,2]
[425978592,1782061935000,-500.0,0.00030684,2]
[425978575,1782061935000,-500.0,0.00030684,2]
[425978587,1782061935000,-506.54,0.00030684,2]
[425978584,1782061935000,-972.04,0.00030684,2]
[425978582,1782061935000,-500.0,0.00030684,2]
[425978585,1782061935000,-562.86,0.00030684,2]
[425978579,1782061935000,-372.60952478,0.00030684,2]